fUSD/lending_fUSD_20260106
["ID","MTS","AMOUNT","RATE_DAILY","PERIOD"]
[400603887,1767739871463,-1541.521127,0.00043509,120]
[400603888,1767739871473,-1541.521127,0.00043509,120]
[400603889,1767739871482,-1541.521127,0.00043509,120]
[400603890,1767739871491,-1541.521127,0.00043509,120]
[400603891,1767739871500,-1541.521127,0.00043509,120]
[400603892,1767739871509,-1541.521127,0.00043509,120]
[400603893,1767739871518,-763.352621,0.00043509,120]
[400603894,1767739871527,-1541.521122,0.00043509,120]
[400603895,1767739871536,-763.352621,0.00043509,120]
[400603896,1767739871546,-763.352621,0.00043509,120]
[400603897,1767739871556,-763.352621,0.00043509,120]
[400603898,1767739871566,-763.352621,0.00043509,120]
[400603899,1767739871579,-763.352621,0.00043509,120]
[400603900,1767739871589,-330.732476,0.00043509,120]
[400603901,1767739871599,-763.352621,0.00043509,120]
[400603902,1767739871609,-330.732476,0.00043509,120]
[400603903,1767739871618,-763.352621,0.00043509,120]
[400603904,1767739871627,-330.732476,0.00043509,120]
[400603905,1767739871637,-330.732476,0.00043509,120]
[400603906,1767739871646,-763.352621,0.00043509,120]
[400603907,1767739871656,-763.352621,0.00043509,120]
[400603908,1767739871665,-330.732476,0.00043509,120]
[400603909,1767739871675,-763.352621,0.00043509,120]
[400603910,1767739871684,-330.732476,0.00043509,120]
[400603911,1767739871694,-763.352621,0.00043509,120]
[400603912,1767739871703,-330.732476,0.00043509,120]
[400603913,1767739871712,-330.732476,0.00043509,120]
[400603914,1767739871722,-763.352621,0.00043509,120]
[400603915,1767739871731,-763.352621,0.00043509,120]
[400603916,1767739871740,-330.732476,0.00043509,120]
[400603917,1767739871750,-763.352621,0.00043509,120]
[400603918,1767739871759,-330.732476,0.00043509,120]
[400603919,1767739871771,-763.352613,0.00043509,120]
[400603920,1767739871781,-330.732476,0.00043509,120]
[400603921,1767739871790,-330.732476,0.00043509,120]
[400603922,1767739871799,-330.732476,0.00043509,120]
[400603923,1767739871808,-330.732476,0.00043509,120]
[400603924,1767739871817,-330.732476,0.00043509,120]
[400603925,1767739871826,-330.732476,0.00043509,120]
[400603926,1767739871835,-544.53238,0.00043509,120]
[400603927,1767739871845,-544.53238,0.00043509,120]
[400603928,1767739871854,-544.53238,0.00043509,120]
[400603929,1767739871863,-544.53238,0.00043509,120]
[400603930,1767739871872,-544.53238,0.00043509,120]
[400603931,1767739871881,-544.53238,0.00043509,120]
[400603932,1767739871889,-544.53238,0.00043509,120]
[400603933,1767739871899,-544.53238,0.00043509,120]
[400603934,1767739871907,-544.53238,0.00043509,120]
[400603935,1767739871916,-544.53238,0.00043509,120]
[400603936,1767739871926,-544.53238,0.00043509,120]
[400603937,1767739871936,-544.53238,0.00043509,120]
[400603938,1767739871945,-544.53238,0.00043509,120]
[400603939,1767739871954,-544.53238,0.00043509,120]
[400603940,1767739871966,-544.53238,0.00043509,120]
[400603941,1767739871978,-544.532382,0.00043509,120]
[400603942,1767739871987,-988.097522,0.00043509,120]
[400603943,1767739871997,-988.097522,0.00043509,120]
[400603944,1767739872006,-988.097522,0.00043509,120]
[400603945,1767739872015,-988.097522,0.00043509,120]
[400603946,1767739872025,-988.097522,0.00043509,120]
[400603947,1767739872035,-988.097522,0.00043509,120]
[400603948,1767739872044,-988.097522,0.00043509,120]
[400603949,1767739872055,-988.097522,0.00043509,120]
[400603950,1767739872065,-988.097522,0.00043509,120]
[400603951,1767739872074,-988.097522,0.00043509,120]
[400603952,1767739872083,-988.097522,0.00043509,120]
[400603953,1767739872092,-988.097522,0.00043509,120]
[400603954,1767739872101,-988.097522,0.00043509,120]
[400603955,1767739872110,-988.097522,0.00043509,120]
[400603956,1767739872120,-988.097522,0.00043509,120]
[400603957,1767739872130,-988.097516,0.00043509,120]
[400603958,1767739872139,-185.312393,0.00043509,120]
[400603959,1767739872149,-908.556844,0.00043509,28]
[400603960,1767739872159,-908.556844,0.00043509,28]
[400603961,1767739872168,-908.556844,0.00043509,28]
[400603962,1767739872178,-908.556844,0.00043509,28]
[400603963,1767739872187,-908.556844,0.00043509,28]
[400603964,1767739872197,-908.556844,0.00043509,28]
[400603965,1767739872207,-908.556844,0.00043509,28]
[400603966,1767739872216,-156.715141,0.00043509,120]
[400603967,1767739872225,-908.556844,0.00043509,28]
[400603968,1767739872234,-156.715141,0.00043509,120]
[400603969,1767739872244,-156.715141,0.00043509,120]
[400603970,1767739872253,-908.556844,0.00043509,28]
[400603971,1767739872262,-156.715141,0.00043509,120]
[400603972,1767739872271,-908.556844,0.00043509,28]
[400603973,1767739872280,-908.556844,0.00043509,28]
[400603974,1767739872290,-156.715141,0.00043509,120]
[400603975,1767739872300,-908.556844,0.00043509,28]
[400603976,1767739872311,-156.715141,0.00043509,120]
[400603977,1767739872321,-156.715141,0.00043509,120]
[400603978,1767739872331,-908.556844,0.00043509,28]
[400603979,1767739872341,-156.715141,0.00043509,120]
[400603980,1767739872351,-908.556844,0.00043509,28]
[400603981,1767739872361,-908.556844,0.00043509,28]
[400603982,1767739872370,-908.556837,0.00043509,28]
[400603983,1767739872380,-156.715141,0.00043509,120]
[400603984,1767739872391,-156.715141,0.00043509,120]
[400603985,1767739872401,-156.715141,0.00043509,120]
[400603986,1767739872410,-156.715141,0.00043509,120]
[400603987,1767739872420,-156.715141,0.00043509,120]
[400603988,1767739872429,-156.715141,0.00043509,120]
[400603989,1767739872439,-156.715141,0.00043509,120]
[400603990,1767739872448,-156.715137,0.00043509,120]
[400603991,1767739872457,-151.0,0.00043509,120]
[400603992,1767739872467,-151.0,0.00043509,120]
[400603993,1767739872476,-151.0,0.00043509,120]
[400603994,1767739872485,-151.0,0.00043509,120]
[400603995,1767739872496,-151.0,0.00043509,120]
[400603996,1767739872505,-235.465203,0.00043509,120]
[400603997,1767739872515,-151.0,0.00043509,120]
[400603998,1767739872524,-151.0,0.00043509,120]
[400603999,1767739872534,-151.0,0.00043509,120]
[400604000,1767739872543,-552.599779,0.00043509,15]
[400604001,1767739872553,-151.0,0.00043509,120]
[400604002,1767739872563,-552.599779,0.00043509,15]
[400604003,1767739872573,-158.915095,0.00043509,120]
[400604004,1767739872583,-552.599779,0.00043509,15]
[400604005,1767739872592,-552.599779,0.00043509,15]
[400604006,1767739872602,-242.109031,0.00043509,120]
[400604007,1767739872612,-242.109031,0.00043509,120]
[400604008,1767739872622,-552.599779,0.00043509,15]
[400604009,1767739872633,-242.109031,0.00043509,120]
[400604010,1767739872643,-552.599779,0.00043509,15]
[400604011,1767739872652,-242.109031,0.00043509,120]
[400604012,1767739872662,-552.599779,0.00043509,15]
[400604013,1767739872671,-552.599779,0.00043509,15]
[400604014,1767739872681,-242.109031,0.00043509,120]
[400604015,1767739872690,-242.109031,0.00043509,120]
[400604016,1767739872700,-552.599779,0.00043509,15]
[400604017,1767739872709,-242.109031,0.00043509,120]
[400604018,1767739872718,-552.599779,0.00043509,15]
[400604019,1767739872728,-242.109031,0.00043509,120]
[400604020,1767739872738,-552.599779,0.00043509,15]
[400604021,1767739872748,-152.416691,0.00043509,120]
[400604022,1767739872757,-552.599779,0.00043509,15]
[400604023,1767739872767,-242.109031,0.00043509,120]
[400604024,1767739872777,-242.109031,0.00043509,120]
[400604025,1767739872786,-552.599779,0.00043509,15]
[400604026,1767739872795,-242.109031,0.00043509,120]
[400604027,1767739872804,-552.599779,0.00043509,15]
[400604028,1767739872813,-242.109031,0.00043509,120]
[400604029,1767739872822,-552.599779,0.00043509,15]
[400604030,1767739872832,-552.599782,0.00043509,15]
[400604031,1767739872842,-242.109031,0.00043509,120]
[400604032,1767739872851,-242.109031,0.00043509,120]
[400604033,1767739872861,-290.08099,0.00043509,120]
[400604034,1767739872870,-242.109031,0.00043509,120]
[400604035,1767739872879,-242.109035,0.00043509,120]
[400604036,1767739872889,-151.0,0.00043509,120]
[400604037,1767739872899,-151.0,0.00043509,120]
[400604038,1767739872908,-151.0,0.00043509,120]
[400604039,1767739872917,-151.0,0.00043509,120]
[400604040,1767739872927,-151.0,0.00043509,120]
[400604041,1767739872936,-151.0,0.00043509,120]
[400604042,1767739872946,-151.0,0.00043509,120]
[400604043,1767739872955,-151.0,0.00043509,120]
[400604044,1767739872965,-151.0,0.00043509,120]
[400604045,1767739872977,-214.225432,0.00043509,120]
[400604046,1767739872986,-583.124485,0.00043509,120]
[400604047,1767739872996,-583.124485,0.00043509,120]
[400604048,1767739873006,-151.0,0.00043509,120]
[400604049,1767739873016,-583.124485,0.00043509,120]
[400604050,1767739873027,-151.0,0.00043509,120]
[400604051,1767739873037,-583.124485,0.00043509,120]
[400604052,1767739873047,-151.0,0.00043509,120]
[400604053,1767739873058,-151.0,0.00043509,120]
[400604054,1767739873067,-583.124485,0.00043509,120]
[400604055,1767739873076,-151.0,0.00043509,120]
[400604056,1767739873086,-583.124485,0.00043509,120]
[400604057,1767739873095,-151.0,0.00043509,120]
[400604058,1767739873104,-583.124485,0.00043509,120]
[400604059,1767739873115,-583.124485,0.00043509,120]
[400604060,1767739873125,-151.0,0.00043509,120]
[400604061,1767739873135,-151.0,0.00043509,120]
[400604062,1767739873145,-583.124485,0.00043509,120]
[400604063,1767739873155,-583.124485,0.00043509,120]
[400604064,1767739873164,-151.0,0.00043509,120]
[400604065,1767739873174,-583.124485,0.00043509,120]
[400604066,1767739873184,-151.0,0.00043509,120]
[400604067,1767739873194,-583.124485,0.00043509,120]
[400604068,1767739873206,-151.0,0.00043509,120]
[400604069,1767739873216,-151.0,0.00043509,120]
[400604070,1767739873226,-583.124485,0.00043509,120]
[400604071,1767739873237,-583.124485,0.00043509,120]
[400604072,1767739873248,-583.124485,0.00043509,120]
[400604073,1767739873258,-583.124486,0.00043509,120]
[400604074,1767739873269,-1588.775069,0.00043509,120]
[400604075,1767739873278,-1588.775069,0.00043509,120]
[400604076,1767739873291,-151.0,0.00043509,120]
[400604077,1767739873301,-1588.775069,0.00043509,120]
[400604078,1767739873310,-151.0,0.00043509,120]
[400604079,1767739873320,-1588.775069,0.00043509,120]
[400604080,1767739873329,-151.0,0.00043509,120]
[400604081,1767739873338,-151.0,0.00043509,120]
[400604082,1767739873347,-1588.775069,0.00043509,120]
[400604083,1767739873357,-1588.775069,0.00043509,120]
[400604084,1767739873366,-151.0,0.00043509,120]
[400604085,1767739873375,-1588.775069,0.00043509,120]
[400604086,1767739873385,-151.0,0.00043509,120]
[400604087,1767739873395,-1588.775069,0.00043509,120]
[400604088,1767739873404,-151.0,0.00043509,120]
[400604089,1767739873413,-151.0,0.00043509,120]
[400604090,1767739873423,-1588.775069,0.00043509,120]
[400604091,1767739873433,-1588.775069,0.00043509,120]
[400604092,1767739873443,-151.0,0.00043509,120]
[400604093,1767739873454,-1588.775069,0.00043509,120]
[400604094,1767739873463,-1588.775069,0.00043509,120]
[400604095,1767739873474,-1588.775069,0.00043509,120]
[400604096,1767739873483,-1588.775069,0.00043509,120]
[400604097,1767739873494,-1588.775069,0.00043509,120]
[400604098,1767739873503,-1588.775071,0.00043509,120]
[400604099,1767739873516,-151.0,0.00043509,7]
[400604100,1767739873525,-151.0,0.00043509,7]
[400604101,1767739873535,-151.0,0.00043509,7]
[400604102,1767739873544,-151.0,0.00043509,7]
[400604103,1767739873554,-151.0,0.00043509,7]
[400604104,1767739873564,-151.0,0.00043509,7]
[400604105,1767739873786,-151.0,0.00043509,7]
[400604106,1767739873801,-151.0,0.00043509,7]
[400604107,1767739873811,-151.0,0.00043509,7]
[400604108,1767739873821,-151.0,0.00043509,7]
[400604109,1767739873831,-151.0,0.00043509,7]
[400604110,1767739873842,-151.0,0.00043509,7]
[400604111,1767739873852,-151.0,0.00043509,7]
[400604112,1767739873862,-178.232848,0.00043509,7]
[400604113,1767739873872,-300.83888044,0.00043509,31]
[400604114,1767739873883,-119795.28881889,0.00043509,30]
[400604115,1767739873903,-83983.99127558,0.00043509,30]
[400604116,1767739873912,-778227.75971456,0.0004351,7]
[400604117,1767739873924,-449.495,0.0004351,7]
[400604118,1767739873965,-2274.19721155,0.0004351,7]
[400604119,1767739873980,-355.30904534,0.0004351,7]
[400604120,1767739873996,-558.0629492,0.00043495,120]
[400604121,1767739874008,-438.9660998,0.00043495,120]
[400604122,1767739874019,-2997748.8226934,0.0004351,7]
[400604123,1767739874030,-623765.14870934,0.0004351,7]
[400604124,1767739874047,-386.49005528,0.0004351,7]
[400604125,1767739874058,-1219.4810845,0.0004351,7]
[400604126,1767739874273,-1.7e-07,0.0004351,7]
[400604127,1767739874738,-565.0,0.00036011,2]
[400604128,1767739874747,-258.71,0.00039011,2]
[400604129,1767739874758,-500.0,0.00041095,2]
[400604130,1767739874767,-500.0,0.00041095,2]
[400604131,1767739874777,-500.0,0.00041095,2]
[400604132,1767739874786,-495.60848434,0.00041095,2]
[400604133,1767739874795,-482.51,0.00042164,30]
[400604134,1767739874809,-466.43,0.00042356,30]
[400604135,1767739874819,-661.18,0.00042548,30]
[400604136,1767739874828,-555.93,0.00042685,30]
[400604137,1767739874837,-150.0,0.00042685,30]
[400604138,1767739874846,-157.0,0.00042685,30]
[400604139,1767739874855,-171.25,0.00042685,30]
[400604140,1767739874864,-178.99,0.00042685,30]
[400604141,1767739874873,-870.32122803,0.00043495,120]
[400604142,1767739875583,-83.47169697,0.00043495,120]
[400604143,1767739875594,-1357.489424,0.00043495,120]
[400604144,1767739875606,-997.029049,0.00043495,120]
[400604145,1767739875617,-953.792925,0.00043495,120]
[400604146,1767739875626,-997.029049,0.00043495,120]
[400604147,1767739875635,-1329.407663,0.00043495,120]
[400604148,1767739875645,-464602.47601291,0.0004351,7]
[400604149,1767739875664,-1329.407663,0.00043495,120]
[400604150,1767739875674,-6836.832337,0.0004351,7]
[400604156,1767739878513,1434.09400318,0.00024125,120]
[400604234,1767740270024,-165.12,0.00016712,2]
[400604235,1767740270057,-250.0,0.00017106,2]
[400604236,1767740270087,-633.3374863,0.000174,2]
[400604237,1767740270120,-250.0,0.00017402,2]
[400604238,1767740270156,-595.91992285,0.00017499,2]
[400604239,1767740270189,-1200.0,0.00017499,2]
[400604240,1767740270219,-300.0,0.00017499,2]
[400604279,1767740557475,-1846.13,0.0001715,2]
[400604280,1767740557500,-159.881,0.0001715,2]
[400604281,1767740557525,-1001.3396,0.000174,2]
[400604282,1767740557554,-403.0495,0.000174,2]
[400604283,1767740557580,-4641.44146844,0.000174,2]
[400604284,1767740557607,-422.22499086,0.000174,2]
[400604285,1767740557631,-300.0,0.0001745,2]
[400604286,1767740557656,-1200.0,0.00017499,2]
[400604287,1767740557681,-300.0,0.00017499,2]
[400604288,1767740557705,-300.0,0.00017499,2]
[400604289,1767740557732,-500.0,0.00017499,2]
[400604290,1767740557763,-988925.9334407,0.000175,2]
[400604334,1767740961123,-250.0,0.00017,2]
[400604335,1767740961163,-250.0,0.0001725,2]
[400604336,1767740961188,-1200.0,0.00017499,2]
[400604337,1767740961212,-300.0,0.00017499,2]
[400604338,1767740961235,-500.0,0.00017499,2]
[400604339,1767740961261,-500.0,0.00017499,2]
[400604340,1767740961285,-500.0,0.00017499,2]
[400604341,1767740961311,-500.0,0.00017499,2]
[400604342,1767740961337,-1360.30807046,0.000176,2]
[400604350,1767741032291,-300.0,0.00017599,2]
[400604351,1767741032302,-1200.0,0.00017599,2]
[400604352,1767741032311,-9457.99854066,0.000176,2]
[400604353,1767741032323,-14818.72791235,0.000176,2]
[400604354,1767741032337,-3592.19999998,0.000176,2]
[400604355,1767741032377,-879.45743612,0.000176,2]
[400604356,1767741032392,-2127.37987507,0.000176,2]
[400604357,1767741032403,-931.037,0.000176,2]
[400604358,1767741032521,-163740.753304,0.000176,2]
[400604359,1767741032532,-6205.85176843,0.000176,2]
[400604360,1767741032545,-25484.97654545,0.000176,2]
[400604361,1767741032559,-2286.90336051,0.000176,2]
[400604362,1767741032570,-664.63807819,0.000176,2]
[400604408,1767741038610,-303.73259854,0.00017599,2]
[400604409,1767741038621,-3076.06740146,0.000176,2]
[400604410,1767741038632,-690.04315602,0.000176,2]
[400604411,1767741038643,-6075.94110169,0.000176,2]
[400604412,1767741038753,-1295.00000005,0.000176,2]
[400604413,1767741038764,-140408.45886317,0.000176,2]
[400604414,1767741038800,-616904.25758639,0.000176,2]
[400604415,1767741038810,-1000.0,0.000177,2]
[400604416,1767741038820,-9694.1365,0.000177,2]
[400604417,1767741038829,-151.0,0.00017728,2]
[400604418,1767741038839,-151.0,0.00017728,2]
[400604419,1767741038849,-151.0,0.0001774,2]
[400604420,1767741038860,-151.0,0.0001774,2]
[400604421,1767741038870,-151.0,0.00017753,2]
[400604422,1767741038880,-151.0,0.00017753,2]
[400604423,1767741038890,-652.20626982,0.00017759,2]
[400604424,1767741038900,-500.0,0.00017799,2]
[400604425,1767741038911,-500.0,0.00017799,2]
[400604427,1767741038921,-500.0,0.00017799,2]
[400604429,1767741038931,-500.0,0.00017799,2]
[400604431,1767741038941,-500.0,0.00017799,2]
[400604433,1767741038950,-500.0,0.00017799,2]
[400604434,1767741038960,-640.35101974,0.00017799,2]
[400604436,1767741038969,-500.0,0.00017799,2]
[400604438,1767741038979,-500.0,0.00017799,2]
[400604440,1767741038989,-500.0,0.00017799,2]
[400604442,1767741038999,-500.0,0.00017799,2]
[400604444,1767741039009,-500.0,0.00017799,2]
[400604446,1767741039019,-500.0,0.00017973,2]
[400604448,1767741039031,-500.0,0.00017973,2]
[400604450,1767741039041,-502.24390153,0.00017973,2]
[400604452,1767741039051,-500.0,0.00017973,2]
[400604454,1767741039062,-500.0,0.00017973,2]
[400604456,1767741039072,-500.0,0.00017998,2]
[400604458,1767741039083,-1000.0,0.00018521,2]
[400604461,1767741039093,-728.70627457,0.00018521,2]
[400604463,1767741039103,-629.0,0.00018527,2]
[400604478,1767741039364,-17970.35,0.00018533,2]
[400604479,1767741039382,-629.0,0.00018615,2]
[400604481,1767741039392,-425.20451976,0.00018688,2]
[400604482,1767741039404,-300.0,0.000187,2]
[400604484,1767741039414,-735.49051536,0.000187,2]
[400604486,1767741039424,-250.0,0.000187,2]
[400604489,1767741039434,-250.0,0.000187,2]
[400604491,1767741039444,-629.0,0.00018747,2]
[400604492,1767741039453,-629.0,0.00018848,2]
[400604494,1767741039462,-629.0,0.0001886,2]
[400604496,1767741039471,-629.0,0.00018941,2]
[400604498,1767741039480,-300.0,0.00019,2]
[400604500,1767741039489,-629.0,0.00019001,2]
[400604502,1767741039499,-629.0,0.00019055,2]
[400604504,1767741039508,-629.0,0.00019067,2]
[400604506,1767741039518,-1500.0,0.00019068,2]
[400604508,1767741039528,-500.0,0.00019097,2]
[400604510,1767741039537,-420.0,0.0001921,2]
[400604512,1767741039547,-629.0,0.00019226,2]
[400604514,1767741039556,-505.33303096,0.00019226,2]
[400604516,1767741039566,-266.02969783,0.00019264,2]
[400604518,1767741039579,-1680.0,0.00019305,2]
[400604520,1767741039589,-12693.16,0.00019311,2]
[400604522,1767741039598,-629.0,0.00019324,2]
[400604524,1767741039608,-500.0,0.00019338,2]
[400604526,1767741039617,-250.0,0.00019359,2]
[400604528,1767741039628,-629.0,0.00019367,2]
[400604530,1767741039638,-629.0,0.0001938,2]
[400604532,1767741039648,-629.0,0.00019429,2]
[400604534,1767741039657,-629.0,0.00019508,2]
[400604536,1767741039666,-2000.0,0.00019616,2]
[400604538,1767741039676,-226.47,0.00019696,2]
[400604540,1767741039686,-629.0,0.00019697,2]
[400604542,1767741039695,-629.0,0.00019722,2]
[400604544,1767741039704,-336.53,0.00019747,2]
[400604546,1767741039714,-629.0,0.00019795,2]
[400604548,1767741039724,-629.0,0.00019929,2]
[400604550,1767741039734,-500.0,0.00019973,2]
[400604551,1767741039743,-500.0,0.00019973,2]
[400604553,1767741039754,-372.49405725,0.00019973,2]
[400604556,1767741039763,-500.0,0.00019973,2]
[400604558,1767741039775,-500.0,0.00019973,2]
[400604560,1767741039786,-500.0,0.00019973,2]
[400604562,1767741039795,-500.0,0.00019973,2]
[400604564,1767741039804,-500.0,0.00019973,2]
[400604566,1767741039814,-500.0,0.00019973,2]
[400604568,1767741039823,-278.74307495,0.00019973,2]
[400604570,1767741039833,-500.0,0.00019973,2]
[400604572,1767741039842,-500.0,0.00019973,2]
[400604574,1767741039855,-500.0,0.00019973,2]
[400604576,1767741039865,-500.0,0.00019973,2]
[400604578,1767741039876,-500.0,0.00019973,2]
[400604580,1767741039885,-500.0,0.00019973,2]
[400604582,1767741039895,-500.0,0.00019973,2]
[400604584,1767741039904,-609.74056714,0.00019973,2]
[400604586,1767741039914,-500.0,0.00019973,2]
[400604588,1767741039924,-168.23151009,0.00019973,2]
[400604590,1767741039933,-514.89956747,0.00019973,2]
[400604592,1767741039943,-500.0,0.00019973,2]
[400604594,1767741039952,-500.0,0.00019973,2]
[400604596,1767741039963,-500.0,0.00019973,2]
[400604598,1767741039973,-500.0,0.00019973,2]
[400604600,1767741039984,-194.75564205,0.00019973,2]
[400604602,1767741039993,-500.0,0.00019973,2]
[400604604,1767741040003,-500.0,0.00019973,2]
[400604606,1767741040013,-500.0,0.00019973,2]
[400604608,1767741040022,-500.0,0.00019973,2]
[400604610,1767741040032,-500.0,0.00019973,2]
[400604612,1767741040041,-500.0,0.00019973,2]
[400604614,1767741040051,-397.67768692,0.00019973,2]
[400604616,1767741040061,-500.0,0.00019973,2]
[400604618,1767741040070,-500.0,0.00019973,2]
[400604620,1767741040080,-500.0,0.00019973,2]
[400604622,1767741040090,-500.0,0.00019973,2]
[400604624,1767741040099,-500.0,0.00019973,2]
[400604626,1767741040108,-500.0,0.00019973,2]
[400604628,1767741040118,-500.0,0.00019973,2]
[400604630,1767741040127,-500.0,0.00019973,2]
[400604632,1767741040136,-500.0,0.00019973,2]
[400604634,1767741040146,-500.0,0.00019973,2]
[400604636,1767741040155,-500.0,0.00019973,2]
[400604638,1767741040165,-500.0,0.00019973,2]
[400604640,1767741040174,-500.0,0.00019973,2]
[400604642,1767741040184,-500.0,0.00019973,2]
[400604644,1767741040193,-500.0,0.00019973,2]
[400604646,1767741040202,-500.801884,0.00019973,2]
[400604648,1767741040212,-428.91151684,0.00019973,2]
[400604650,1767741040221,-554.45007798,0.00019973,2]
[400604652,1767741040231,-500.0,0.00019973,2]
[400604654,1767741040240,-577.63829625,0.00019973,2]
[400604656,1767741040250,-1072.58,0.00019973,2]
[400604658,1767741040259,-165.52157161,0.0002,20]
[400604660,1767741040268,-629.0,0.00020014,2]
[400604662,1767741040278,-629.0,0.00020082,2]
[400604664,1767741040287,-629.0,0.00020121,2]
[400604666,1767741040296,-1696.5528361,0.00020164,2]
[400604668,1767741040306,-629.0,0.00020165,2]
[400604670,1767741040315,-1072.58,0.00020247,2]
[400604672,1767741040324,-629.0,0.0002033,2]
[400604674,1767741040337,-629.0,0.00020331,2]
[400604676,1767741040346,-500.0,0.00020521,2]
[400604678,1767741040356,-1000.0,0.00020521,2]
[400604680,1767741040365,-1000.0,0.00020521,2]
[400604682,1767741040375,-1000.0,0.00020521,2]
[400604684,1767741040385,-1000.0,0.00020521,2]
[400604686,1767741040395,-851.85970435,0.00020521,2]
[400604688,1767741040404,-1000.0,0.00020521,2]
[400604690,1767741040414,-1000.0,0.00020521,2]
[400604692,1767741040424,-1000.0,0.00020521,2]
[400604694,1767741040433,-1000.0,0.00020521,2]
[400604696,1767741040442,-501.63805669,0.00020521,2]
[400604698,1767741040451,-1008.45652009,0.00020521,2]
[400604700,1767741040461,-501.80133241,0.00020521,2]
[400604702,1767741040470,-1006.60230757,0.00020521,2]
[400604704,1767741040480,-502.1413462,0.00020521,2]
[400604706,1767741040490,-1000.0,0.00020521,2]
[400604708,1767741040499,-501.23557453,0.00020521,2]
[400604710,1767741040509,-1139.59042404,0.00020521,2]
[400604712,1767741040518,-1000.0,0.00020521,2]
[400604714,1767741040528,-500.61424225,0.00020521,2]
[400604716,1767741040537,-1024.74378728,0.00020521,2]
[400604718,1767741040547,-1000.0,0.00020521,2]
[400604720,1767741040556,-432.597556,0.00020521,2]
[400604722,1767741040566,-1000.0,0.00020521,2]
[400604724,1767741040575,-1000.0,0.00020521,2]
[400604726,1767741040585,-1000.0,0.00020521,2]
[400604728,1767741040594,-1140.98789269,0.00020521,2]
[400604730,1767741040603,-501.32610001,0.00020521,2]
[400604732,1767741040613,-570.38444001,0.00020521,2]
[400604734,1767741040622,-1000.0,0.00020521,2]
[400604736,1767741040632,-1000.0,0.00020521,2]
[400604738,1767741040641,-1000.0,0.00020521,2]
[400604740,1767741040651,-587.43896406,0.00020521,2]
[400604742,1767741040660,-969.49140295,0.00020521,2]
[400604744,1767741040670,-1000.0,0.00020521,2]
[400604746,1767741040680,-1000.0,0.00020521,2]
[400604748,1767741040689,-190.66835614,0.00020521,2]
[400604750,1767741040699,-1000.0,0.00020521,2]
[400604752,1767741040708,-1000.0,0.00020521,2]
[400604754,1767741040717,-501.82128639,0.00020521,2]
[400604756,1767741040727,-880.26169935,0.00020521,2]
[400604758,1767741040736,-1072.58,0.00020521,2]
[400604760,1767741040746,-870.0,0.00020548,2]
[400604762,1767741040755,-384.98,0.00020773,2]
[400604764,1767741040764,-2823.5,0.00020779,2]
[400604766,1767741040775,-1072.58,0.00020795,2]
[400604768,1767741040784,-336.53,0.00020844,2]
[400604770,1767741040794,-12049.3818,0.00020968,2]
[400604772,1767741040803,-587.0,0.00020969,2]
[400604774,1767741040813,-350.0,0.00021,2]
[400604776,1767741040822,-1072.58,0.00021068,2]
[400604778,1767741040832,-1500.0,0.00021068,2]
[400604780,1767741040841,-1500.0,0.00021068,2]
[400604782,1767741040851,-1000.0,0.00021068,2]
[400604784,1767741040860,-1007.04300931,0.00021068,2]
[400604786,1767741040869,-500.9665977,0.00021068,2]
[400604788,1767741040879,-910.11880643,0.00021068,2]